bitfinex-derivatives/quotes_BTCF0:USTF0_20250626
["timestamp","ask_amount","ask_price","bid_price","bid_amount"]
[1750957423006,0.8686536,107410.0,107400.0,0.1861591]
[1750957423206,0.02492678,107410.0,107400.0,0.60733848]
[1750957423505,0.78554858,107410.0,107400.0,0.62733848]
[1750957424012,0.02492678,107410.0,107400.0,0.62733848]
[1750957424212,0.21106848,107410.0,107400.0,0.62733848]
[1750957425410,0.21106848,107410.0,107400.0,0.2691591]
[1750957426110,0.21106848,107410.0,107400.0,0.62733848]
[1750957426516,0.21106848,107410.0,107400.0,0.2386591]
[1750957426718,0.30846848,107410.0,107400.0,0.2386591]
[1750957427410,0.30946848,107410.0,107400.0,0.2386591]
[1750957428309,0.30846848,107410.0,107400.0,0.2386591]
[1750957428610,0.30846848,107410.0,107400.0,0.2396591]
[1750957429014,0.30846848,107410.0,107400.0,0.2416591]
[1750957435316,0.21106848,107410.0,107400.0,0.63163848]
[1750957437919,0.21106848,107410.0,107400.0,0.2734591]
[1750957438113,0.27256848,107410.0,107400.0,0.2734591]
[1750957438715,0.63074786,107410.0,107400.0,0.2091591]
[1750957439317,0.27256848,107410.0,107400.0,0.2091591]
[1750957439518,0.63336848,107410.0,107400.0,0.2091591]
[1750957439932,0.63336848,107410.0,107400.0,0.2061591]
[1750957440220,0.63336848,107410.0,107400.0,0.2071583]
[1750957440521,0.99154786,107410.0,107400.0,0.1871583]
[1750957442017,1.00154786,107410.0,107400.0,0.1871583]
[1750957442916,1.00154786,107410.0,107400.0,0.187158]
[1750957444426,1.00154786,107410.0,107400.0,0.186158]
[1750957444618,1.00154786,107410.0,107400.0,0.187158]
[1750957445021,1.00154786,107410.0,107400.0,0.186158]
[1750957445220,1.00154786,107410.0,107400.0,0.187158]
[1750957446523,0.64336848,107410.0,107400.0,0.187158]
[1750957447124,0.64336848,107410.0,107400.0,0.186158]
[1750957447422,0.64336848,107410.0,107400.0,0.187158]
[1750957447622,0.79518848,107410.0,107400.0,0.54533738]
[1750957447814,0.78518848,107410.0,107400.0,0.63863738]
[1750957449227,0.78518848,107410.0,107400.0,0.64803108]
[1750957449725,0.78526848,107410.0,107400.0,0.64803108]
[1750957449925,0.78526848,107410.0,107400.0,0.65003108]
[1750957450129,0.78526848,107410.0,107400.0,0.64063738]
[1750957450717,0.21106848,107410.0,107400.0,0.64063738]
[1750957450923,0.21106848,107410.0,107400.0,0.69063738]
[1750957450924,0.78514848,107410.0,107400.0,0.69063738]
[1750957451323,0.59900678,107410.0,107400.0,0.69063738]
[1750957451526,0.02492678,107410.0,107400.0,1.05143738]
[1750957451828,0.02492678,107410.0,107400.0,1.26143738]
[1750957452232,0.02492678,107410.0,107400.0,1.75473676]
[1750957452727,0.02492678,107410.0,107400.0,1.40566472]
[1750957453130,0.0002001,107420.0,107410.0,0.1861389]
[1750957453431,0.02475865,107420.0,107410.0,1.22791828]
[1750957454719,0.02475865,107420.0,107410.0,0.8697389]
[1750957454922,0.02475865,107420.0,107410.0,1.22791828]
[1750957456733,0.02475865,107420.0,107410.0,1.22891828]
[1750957457133,1e-07,107420.0,107410.0,1.22891828]
[1750957457833,1e-07,107420.0,107410.0,1.80267828]
[1750957458933,1e-07,107420.0,107410.0,2.05267828]
[1750957459232,0.0002,107430.0,107420.0,0.1861217]
[1750957459433,0.0002,107440.0,107430.0,0.1861044]
[1750957459629,0.9329019,107450.0,107440.0,0.186087]
[1750957459834,1.1069523,107450.0,107440.0,0.186087]
[1750957460333,1.1069523,107450.0,107440.0,0.25874042]
[1750957460733,1.1119523,107450.0,107440.0,0.25874042]
[1750957460930,1.1119523,107450.0,107440.0,0.29124042]
[1750957461429,0.4916708,107450.0,107440.0,0.29124042]
[1750957461635,0.3986201,107450.0,107440.0,1.01942412]
[1750957461830,0.0302504,107450.0,107440.0,1.05152412]
[1750957462626,0.2163201,107450.0,107440.0,1.05152412]
[1750957463126,0.0302504,107450.0,107440.0,1.05152412]
[1750957463538,0.2163201,107450.0,107440.0,1.05152412]
[1750957464138,0.1920697,107450.0,107440.0,1.05152412]
[1750957465739,0.006,107450.0,107440.0,1.05152412]
[1750957467228,0.1920697,107450.0,107440.0,0.69334474]
[1750957467536,0.006,107450.0,107440.0,1.05152412]
[1750957467840,0.006,107450.0,107440.0,1.06152412]
[1750957468035,0.004,107450.0,107440.0,1.19712412]
[1750957468544,0.004,107450.0,107440.0,1.38712412]
[1750957472237,0.1900697,107450.0,107440.0,1.38712412]
[1750957472439,0.1900697,107450.0,107440.0,0.85204042]
[1750957472636,0.27850879,107450.0,107440.0,0.45874042]
[1750957472837,0.31080879,107450.0,107440.0,1.03306042]
[1750957474741,0.31080879,107450.0,107440.0,0.45874042]
[1750957477745,0.31080879,107450.0,107440.0,0.8493198]
[1750957479250,0.31080879,107450.0,107440.0,0.86459384]
[1750957479544,0.12473909,107450.0,107440.0,0.86459384]
[1750957479749,0.31080879,107450.0,107440.0,1.22539384]
[1750957480050,0.31080879,107450.0,107440.0,1.25699384]
[1750957480348,0.21430879,107450.0,107440.0,1.25699384]
[1750957480549,0.02823909,107450.0,107440.0,1.25699384]
[1750957482850,0.02823909,107450.0,107440.0,1.59989918]
[1750957483545,0.02823909,107450.0,107440.0,1.2417198]
[1750957483948,0.02823909,107450.0,107440.0,1.25728557]
[1750957484148,0.21430879,107450.0,107440.0,1.25728557]
[1750957484339,0.02823909,107450.0,107440.0,1.25728557]
[1750957484945,0.02623909,107450.0,107440.0,1.61546495]
[1750957485343,0.02623909,107450.0,107440.0,1.25728557]
[1750957486346,0.02623909,107450.0,107440.0,1.61546495]
[1750957487052,0.02623909,107450.0,107440.0,1.25728557]
[1750957487752,0.02623909,107450.0,107440.0,1.25689936]
[1750957489251,0.02623909,107450.0,107440.0,1.61507874]
[1750957489555,0.02623909,107450.0,107440.0,1.25689936]
[1750957489752,0.02623909,107450.0,107440.0,1.61507874]
[1750957491856,0.02523909,107450.0,107440.0,1.25689936]
[1750957492055,0.02523909,107450.0,107440.0,1.25989936]
[1750957494956,0.02523909,107450.0,107440.0,1.61807874]
[1750957495949,0.0002,107460.0,107450.0,0.1860698]
[1750957496151,0.0002,107470.0,107460.0,0.1860525]
[1750957496347,0.81263935,107480.0,107470.0,0.1860351]
[1750957496557,0.81243935,107480.0,107470.0,0.54421448]
[1750957496757,0.81243935,107480.0,107470.0,0.1860351]
[1750957497460,0.31211905,107480.0,107470.0,0.54421448]
[1750957497648,0.03148485,107480.0,107470.0,0.54421448]
[1750957497850,0.03148485,107480.0,107470.0,0.2793351]
[1750957498159,0.03148485,107480.0,107470.0,1.57283448]
[1750957498852,0.03148485,107480.0,107470.0,1.70831448]
[1750957499457,0.03448485,107480.0,107470.0,1.70831448]
[1750957500264,0.22050265,107480.0,107470.0,1.70831448]
[1750957500861,0.03448485,107480.0,107470.0,1.70831448]
[1750957501260,0.03448485,107480.0,107470.0,1.71831448]
[1750957501565,0.03448485,107480.0,107470.0,1.72746894]
[1750957501762,0.22050265,107480.0,107470.0,1.72746894]
[1750957502368,0.22050265,107480.0,107470.0,1.01746894]
[1750957502570,0.22050265,107480.0,107470.0,1.30516894]
[1750957502770,0.28490265,107480.0,107470.0,0.58661448]
[1750957503079,0.1860351,107470.0,107460.0,0.9418703]
[1750957503368,0.30698442,107470.0,107460.0,0.3680303]
[1750957504461,0.30698442,107470.0,107460.0,0.72620968]
[1750957505363,0.30698442,107470.0,107460.0,0.73620968]
[1750957505572,0.12094932,107470.0,107460.0,1.27700968]
[1750957505773,0.02464932,107470.0,107460.0,1.34150968]
[1750957505964,0.02464932,107470.0,107460.0,1.37160968]
[1750957507466,0.02564932,107470.0,107460.0,1.37160968]
[1750957507665,0.02564932,107470.0,107460.0,1.38097315]
[1750957510975,0.001,107470.0,107460.0,1.38097315]
[1750957511677,1e-07,107470.0,107460.0,1.38097315]
[1750957513170,1e-07,107470.0,107460.0,1.67977315]
[1750957513674,0.00703553,107480.0,107470.0,0.1860351]
[1750957513872,0.00683553,107480.0,107470.0,1.83309448]
[1750957514074,0.03148341,107480.0,107470.0,1.83309448]
[1750957514377,0.21750121,107480.0,107470.0,1.76941448]
[1750957514567,0.03148341,107480.0,107470.0,1.86361448]
[1750957520377,0.21750121,107480.0,107470.0,1.28921448]
[1750957520682,0.21750121,107480.0,107470.0,1.86349448]
[1750957520885,0.21750121,107480.0,107470.0,1.93723448]
[1750957521078,0.31370121,107480.0,107470.0,1.90473448]
[1750957521383,0.12768341,107480.0,107470.0,1.90473448]
[1750957521586,0.03148341,107480.0,107470.0,1.97083448]
[1750957522984,0.03148341,107480.0,107470.0,1.97075448]
[1750957523289,0.21750121,107480.0,107470.0,1.97075448]
[1750957523589,0.03148341,107480.0,107470.0,1.97075448]
[1750957524785,0.21750121,107480.0,107470.0,1.97075448]
[1750957524987,0.21750121,107480.0,107470.0,1.93775448]
[1750957525184,0.28280121,107480.0,107470.0,1.93775448]
[1750957525383,0.09678341,107480.0,107470.0,1.93775448]
[1750957525583,0.09678341,107480.0,107470.0,1.97065448]
[1750957526988,0.09678341,107480.0,107470.0,1.26101448]
[1750957527190,0.28280121,107480.0,107470.0,1.76925448]
[1750957527490,0.09678341,107480.0,107470.0,1.76925448]
[1750957528387,0.28280121,107480.0,107470.0,1.76925448]
[1750957529182,0.64098059,107480.0,107470.0,0.4760351]
[1750957529386,0.64098059,107480.0,107470.0,0.1860351]
[1750957529586,1.01178059,107480.0,107470.0,0.1860351]
[1750957529785,0.65360121,107480.0,107470.0,0.1860351]
[1750957529987,0.28280121,107480.0,107470.0,0.54421448]
[1750957530187,0.28280121,107480.0,107470.0,0.91501448]
[1750957530593,0.28280121,107480.0,107470.0,1.15931448]
[1750957530780,0.09678341,107480.0,107470.0,1.15931448]
[1750957531100,0.03148341,107480.0,107470.0,1.15931448]
[1750957531301,0.03148341,107480.0,107470.0,1.73411448]
[1750957531993,0.21750121,107480.0,107470.0,1.73411448]
[1750957532896,0.03148341,107480.0,107470.0,1.73411448]
[1750957535799,0.03148341,107480.0,107470.0,1.3759351]
[1750957535997,0.03148341,107480.0,107470.0,1.73411448]
[1750957537399,0.0002,107490.0,107480.0,0.1860177]
[1750957537600,0.0986,107500.0,107490.0,0.1860004]
[1750957537601,0.0052,107500.0,107490.0,0.1860004]
[1750957537798,0.0052,107500.0,107490.0,1.61461978]
[1750957537799,0.005,107500.0,107490.0,1.61461978]
[1750957538404,0.005,107500.0,107490.0,1.2564404]
[1750957538601,0.005,107500.0,107490.0,1.61461978]
[1750957538801,0.1929831,107500.0,107490.0,1.58231978]
[1750957539007,0.2559831,107500.0,107490.0,1.58231978]
[1750957539600,0.007,107500.0,107490.0,1.81431978]
[1750957540796,0.007,107500.0,107490.0,1.4561404]
[1750957541000,0.007,107500.0,107490.0,1.81431978]
[1750957542805,0.1929832,107500.0,107490.0,1.81431978]
[1750957543006,0.2549832,107500.0,107490.0,1.78319978]
[1750957543208,0.2858832,107500.0,107490.0,1.4248604]
[1750957543410,0.2858832,107500.0,107490.0,0.5968004]
[1750957543708,0.2858832,107500.0,107490.0,0.7620004]
[1750957544008,0.6466832,107500.0,107490.0,0.7620004]
[1750957544207,0.6466832,107500.0,107490.0,0.1860004]
[1750957544507,0.1860004,107490.0,107480.0,0.55963088]
[1750957544706,0.97687978,107490.0,107480.0,0.3514515]
[1750957544914,0.78087938,107490.0,107470.0,0.0465085]
[1750957545207,0.99909708,107480.0,107470.0,0.1860317]
[1750957545406,1.11909708,107480.0,107470.0,0.1860317]
[1750957545805,0.7609177,107480.0,107470.0,0.1860317]
[1750957546005,1.11909708,107480.0,107470.0,0.1860317]
[1750957546310,1.25861828,107480.0,107470.0,0.186035]
[1750957546510,1.25861828,107480.0,107470.0,0.187035]
[1750957546707,1.71861828,107480.0,107470.0,0.001]
[1750957547097,1.85393828,107480.0,107470.0,0.001]
[1750957547297,1.60393828,107480.0,107470.0,0.001]
[1750957548511,0.1860351,107470.0,107460.0,0.2790671]
[1750957548810,1.54769448,107470.0,107460.0,0.2790671]
[1750957549007,1.54769448,107470.0,107460.0,0.2325544]
[1750957549400,1.57241067,107470.0,107460.0,0.1860417]
[1750957549907,1.57241067,107470.0,107460.0,0.1870452]
[1750957553307,1.57241067,107470.0,107460.0,0.001]
[1750957553508,0.1860697,107450.0,107440.0,0.35856921]
[1750957553709,1.12016908,107450.0,107440.0,0.32656921]
[1750957554012,1.12016908,107450.0,107440.0,0.18700591]
[1750957554013,1.54326908,107450.0,107440.0,0.18700591]
[1750957554411,1.18326908,107450.0,107440.0,0.18700591]
[1750957554809,1.92406908,107450.0,107440.0,0.00093071]
[1750957555015,1.92406908,107450.0,107440.0,0.00193071]
[1750957555413,1.92406908,107450.0,107440.0,0.00293071]
[1750957555913,1.92406908,107450.0,107440.0,0.00193071]
[1750957556113,1.92506908,107450.0,107440.0,0.00193071]
[1750957556313,1.91575583,107450.0,107440.0,0.00193071]
[1750957556713,0.186087,107440.0,107430.0,0.1861043]
[1750957556903,1.26757313,107440.0,107430.0,0.1861043]
[1750957557107,0.1861043,107430.0,107420.0,0.1861136]
[1750957557313,0.8257843,107430.0,107420.0,0.1861136]
[1750957557913,0.90141457,107430.0,107420.0,0.1861136]
[1750957558404,0.32553457,107430.0,107420.0,0.5469136]
[1750957558616,0.26173457,107430.0,107420.0,1.07577973]
[1750957558811,0.26173457,107430.0,107420.0,1.13877973]
[1750957559812,0.26173457,107430.0,107420.0,0.7199136]
[1750957560215,0.26173457,107430.0,107420.0,0.7229136]
[1750957560507,0.07563027,107430.0,107420.0,0.9229136]
[1750957560705,0.2328139,107440.0,107430.0,0.1861043]
[1750957560906,0.2791373,107440.0,107430.0,0.8204043]
[1750957561715,0.35414942,107440.0,107430.0,0.8204043]
[1750957562507,0.35414942,107440.0,107430.0,0.8214043]
[1750957562908,0.30862602,107440.0,107430.0,0.8214043]
[1750957563212,0.07601212,107440.0,107430.0,1.24027043]
[1750957563405,0.26209912,107440.0,107430.0,0.6096043]
[1750957563612,0.26109912,107440.0,107430.0,0.6126043]
[1750957563817,0.29259912,107440.0,107430.0,0.6136043]
[1750957565813,0.32539912,107440.0,107430.0,0.5830043]
[1750957566017,0.35749912,107440.0,107430.0,0.5830043]
[1750957567216,0.35749912,107440.0,107430.0,0.5810043]
[1750957567412,0.35849912,107440.0,107430.0,0.5810043]
[1750957568616,0.29489912,107440.0,107430.0,0.5810043]
[1750957568912,0.26209912,107440.0,107430.0,0.5810043]
[1750957569517,0.26209912,107440.0,107430.0,0.3300043]
[1750957569717,0.26209912,107440.0,107430.0,0.3310043]
[1750957570825,0.62389912,107440.0,107430.0,0.3300043]
[1750957572127,0.64840245,107440.0,107430.0,0.3300043]
[1750957572426,0.26309912,107440.0,107430.0,0.3300043]
[1750957573328,0.28761861,107440.0,107430.0,0.3300043]
[1750957575232,0.10153161,107440.0,107430.0,0.74887043]
[1750957575446,0.10153161,107440.0,107430.0,1.34967043]
[1750957576335,0.10153161,107440.0,107430.0,1.2881293]
[1750957576939,0.10203161,107440.0,107430.0,1.2881293]
[1750957577540,0.10203161,107440.0,107430.0,0.9308043]
[1750957577839,0.10203161,107440.0,107430.0,1.30330666]
[1750957578042,0.0025,107440.0,107430.0,1.30330666]
[1750957579530,0.02670057,107440.0,107430.0,1.30330666]
[1750957579942,0.0025,107440.0,107430.0,1.30330666]
[1750957580138,0.0025,107440.0,107430.0,1.43946666]
[1750957584351,0.0025,107440.0,107430.0,1.44883946]
[1750957585251,0.0025,107440.0,107430.0,1.31267946]
[1750957585448,0.0025,107440.0,107430.0,2.02555946]
[1750957585852,0.0025,107440.0,107430.0,2.02559946]
[1750957587753,0.0025,107440.0,107430.0,2.02615946]
[1750957588749,0.0025,107440.0,107430.0,1.66867446]
[1750957588943,0.0025,107440.0,107430.0,1.31267946]
[1750957589149,0.0025,107440.0,107430.0,2.02619946]
[1750957589751,0.0025,107440.0,107430.0,2.38352446]
[1750957590154,0.0025,107440.0,107430.0,2.02619946]
[1750957590456,0.0002,107450.0,107440.0,0.9007369]
[1750957590658,0.0002,107460.0,107450.0,0.1860696]
[1750957590860,0.16060117,107470.0,107460.0,0.1860523]
[1750957591049,0.3275339,107480.0,107470.0,0.186035]
[1750957591249,0.35157127,107480.0,107470.0,1.48172]
[1750957591556,0.02523737,107480.0,107470.0,1.48172]
[1750957592156,0.28696935,107480.0,107470.0,1.47972]
[1750957592867,0.28696935,107480.0,107470.0,1.4796]
[1750957593160,0.31696935,107480.0,107470.0,1.1188]
[1750957593348,0.34816935,107480.0,107470.0,1.1188]
[1750957593663,0.34816935,107480.0,107470.0,0.54136]
[1750957593862,0.34816935,107480.0,107470.0,0.762235]
[1750957594462,0.34816935,107480.0,107470.0,0.762395]
[1750957594962,0.34816935,107480.0,107470.0,1.11972]
[1750957595262,0.35016935,107480.0,107470.0,1.11972]
[1750957595454,0.35016935,107480.0,107470.0,1.11672]
[1750957595959,0.35316935,107480.0,107470.0,1.11672]
[1750957598763,0.35316935,107480.0,107470.0,0.759395]
[1750957599864,0.35316935,107480.0,107470.0,0.181035]
[1750957603162,0.16715165,107480.0,107460.0,0.7959342]
[1750957603361,0.54336,107470.0,107460.0,0.8663756]
[1750957603568,0.69089737,107470.0,107460.0,0.8663756]
[1750957603767,0.33357237,107470.0,107460.0,0.5408]
[1750957603967,0.1860523,107460.0,107450.0,0.500346]
[1750957604167,0.28228967,107460.0,107450.0,0.7264009]
[1750957604673,0.28228967,107460.0,107450.0,1.0837259]
[1750957604967,0.27228967,107460.0,107450.0,1.0837259]
[1750957605169,0.27228967,107460.0,107450.0,1.1140259]
[1750957606173,0.21028967,107460.0,107450.0,1.1140259]
[1750957608168,0.1860523,107460.0,107450.0,1.1140259]
[1750957608365,0.9504718,107470.0,107460.0,0.1860523]
[1750957608562,0.97462706,107470.0,107460.0,0.9366773]
[1750957608765,0.39622706,107470.0,107460.0,0.9366773]
[1750957609063,0.3718718,107470.0,107460.0,0.5758773]
[1750957609467,0.39722806,107470.0,107460.0,0.5758773]
[1750957613770,0.39722806,107470.0,107460.0,0.6083773]
[1750957615572,0.36672806,107470.0,107460.0,0.6395773]
[1750957615975,0.36672806,107470.0,107460.0,0.2510523]
[1750957616175,0.39952806,107470.0,107460.0,0.2185523]
[1750957616871,0.1860523,107460.0,107450.0,0.1573302]
[1750957617073,0.1860523,107460.0,107450.0,0.4603696]
[1750957617373,0.24323643,107460.0,107450.0,0.3960696]
[1750957617564,0.2497523,107460.0,107450.0,0.3960696]
[1750957617766,0.99226293,107460.0,107450.0,0.1860696]
[1750957617963,0.99226293,107460.0,107450.0,0.1880696]
[1750957618364,0.63493793,107460.0,107450.0,0.1880696]
[1750957618762,0.64436463,107460.0,107450.0,0.1880696]
[1750957619468,0.63493793,107460.0,107450.0,0.1880696]
[1750957622076,1.21253793,107460.0,107450.0,0.1880696]
[1750957622472,1.22168389,107460.0,107450.0,0.1880696]
[1750957623274,1.57900889,107460.0,107450.0,0.1880696]
[1750957623875,1.22168389,107460.0,107450.0,0.1880696]
[1750957625668,1.22168389,107460.0,107450.0,0.002]
[1750957626175,1.57900889,107460.0,107450.0,0.002]
[1750957626675,1.57900889,107460.0,107450.0,0.1880696]
[1750957626975,1.22168389,107460.0,107450.0,0.1880696]
[1750957627274,1.22268389,107460.0,107450.0,0.1880696]
[1750957628476,1.22268389,107460.0,107450.0,0.002]
[1750957628676,1.60268389,107460.0,107450.0,0.002]
[1750957629375,1.60168389,107460.0,107450.0,0.002]
[1750957629576,1.22168389,107460.0,107450.0,0.002]
[1750957630274,1.22268389,107460.0,107450.0,0.002]
[1750957630471,0.1860696,107450.0,107440.0,0.7459571]
[1750957630675,0.21045523,107450.0,107440.0,0.8059571]
[1750957631476,0.27405523,107450.0,107440.0,0.8059571]
[1750957631678,0.27405523,107450.0,107440.0,0.8079571]
[1750957632678,0.27405523,107450.0,107440.0,0.7614361]
[1750957632980,0.63485523,107450.0,107440.0,0.2480717]
[1750957633181,0.66495523,107450.0,107440.0,0.2480717]
[1750957634172,0.66495523,107450.0,107440.0,0.2460717]
[1750957634377,0.66495523,107450.0,107440.0,0.2480717]
[1750957637579,0.66495523,107450.0,107440.0,0.1880717]
[1750957639483,0.80203523,107450.0,107440.0,0.1880717]
[1750957639781,0.80203523,107450.0,107440.0,0.5453967]
[1750957640082,0.80203523,107450.0,107440.0,0.6083967]
[1750957640582,0.80203523,107450.0,107440.0,0.065]
[1750957640778,0.80203523,107450.0,107440.0,0.2510869]
[1750957640980,0.80203523,107450.0,107440.0,0.002]
[1750957641883,0.80203523,107450.0,107440.0,0.1880869]
[1750957642984,0.80203523,107450.0,107440.0,0.002]
[1750957643586,1.37819523,107450.0,107440.0,0.002]
[1750957645384,0.66495523,107450.0,107440.0,0.002]
[1750957645585,1.37795523,107450.0,107440.0,0.002]
[1750957646082,1.74528023,107450.0,107440.0,0.002]
[1750957646781,1.73528023,107450.0,107440.0,0.002]
[1750957646984,0.5434119,107440.0,107430.0,0.0313]
[1750957647286,0.63297253,107440.0,107430.0,0.2174042]
[1750957647475,0.63297253,107440.0,107430.0,0.0313]
[1750957647676,0.63297253,107440.0,107430.0,0.0625]
[1750957648079,0.63297253,107440.0,107430.0,0.2486042]
[1750957648279,0.57127253,107440.0,107430.0,0.2506042]
[1750957649386,0.57127253,107440.0,107430.0,0.0645]
[1750957650181,0.57127253,107440.0,107430.0,0.2506042]
[1750957650382,1.28343253,107440.0,107430.0,0.2506042]
[1750957651786,0.21047253,107440.0,107430.0,0.9687292]
[1750957651986,0.78691253,107440.0,107430.0,1.1187292]
[1750957653492,0.02438563,107440.0,107430.0,1.2987292]
[1750957653690,0.21047253,107440.0,107430.0,1.2987292]
[1750957654291,0.21047253,107440.0,107430.0,1.2997292]
[1750957655495,0.21047253,107440.0,107430.0,0.9389292]
[1750957655695,0.21047253,107440.0,107430.0,1.2997292]
[1750957655996,0.21047253,107440.0,107430.0,1.3007292]
[1750957658398,0.1860869,107440.0,107430.0,1.3007292]
[1750957659205,0.5468869,107440.0,107430.0,0.6099292]
[1750957659504,0.92909097,107440.0,107430.0,0.4026042]
[1750957659697,0.60246597,107440.0,107430.0,0.3714042]
[1750957659899,0.63286597,107440.0,107430.0,0.3714042]
[1750957660504,1.67751597,107440.0,107430.0,0.154]
[1750957660700,1.85367597,107440.0,107430.0,0.004]
[1750957661009,1.59635097,107440.0,107430.0,0.004]
[1750957661213,0.76902597,107440.0,107430.0,0.004]
[1750957661405,1.12635097,107440.0,107430.0,0.004]
[1750957661606,1.46635097,107440.0,107430.0,0.004]
[1750957661810,1.46635097,107440.0,107430.0,0.003]
[1750957662206,1.48635097,107440.0,107430.0,0.003]
[1750957662403,1.58635097,107440.0,107430.0,0.003]
[1750957663214,1.58635097,107440.0,107410.0,0.00093097]
[1750957663215,0.1861213,107420.0,107410.0,0.00093097]
[1750957663412,1.6246463,107420.0,107410.0,0.00093097]
[1750957663712,1.6886463,107420.0,107410.0,0.00093097]
[1750957663911,2.09319241,107420.0,107410.0,0.00093097]
[1750957664109,2.0686463,107420.0,107410.0,0.00093097]
[1750957664311,2.0686463,107420.0,107410.0,0.05093097]
[1750957664312,1.6886463,107420.0,107410.0,0.05093097]
[1750957664514,1.79820155,107420.0,107410.0,0.05393097]
[1750957664904,1.36534747,107420.0,107410.0,0.05793097]
[1750957665103,1.72267247,107420.0,107410.0,0.05793097]
[1750957665303,1.36534747,107420.0,107410.0,0.24406957]
[1750957665504,1.36534747,107420.0,107410.0,0.05793097]
[1750957669305,1.36534747,107420.0,107410.0,0.24406957]
[1750957669513,1.44028106,107420.0,107410.0,0.05793097]
[1750957671614,1.44028106,107420.0,107410.0,0.24406957]
[1750957671814,1.44028106,107420.0,107410.0,0.05793097]
[1750957675215,1.44028106,107420.0,107410.0,0.24406957]
[1750957675417,1.00415586,107420.0,107410.0,0.55139457]
[1750957675612,1.00415586,107420.0,107410.0,0.85359457]
[1750957675813,1.00415586,107420.0,107410.0,0.49626957]
[1750957676013,1.06985586,107420.0,107410.0,0.49626957]
[1750957676214,1.43065586,107420.0,107410.0,0.27793097]
[1750957676414,1.44010613,107420.0,107410.0,0.27793097]
[1750957677219,1.44010613,107420.0,107410.0,0.46406957]
[1750957678717,1.44010613,107420.0,107410.0,0.19406957]
[1750957678919,1.44010613,107420.0,107410.0,0.24406957]
[1750957679416,1.44010613,107420.0,107410.0,0.05793097]
[1750957680318,1.44010613,107420.0,107410.0,0.00793097]
[1750957681018,1.44010613,107420.0,107410.0,0.19406957]
[1750957681413,1.43065586,107420.0,107410.0,0.19406957]
[1750957681614,1.43065586,107420.0,107410.0,0.22406957]
[1750957682420,0.71209586,107420.0,107410.0,0.58139457]
[1750957682620,1.43433586,107420.0,107410.0,0.58139457]
[1750957682819,1.43433586,107420.0,107410.0,0.61369457]
[1750957683220,1.36863586,107420.0,107410.0,0.61369457]
[1750957684319,1.00783586,107420.0,107410.0,0.61369457]
[1750957684520,1.0169977,107420.0,107410.0,0.61369457]
[1750957684715,1.00783586,107420.0,107410.0,0.61369457]
[1750957684910,0.28559586,107420.0,107410.0,0.80369457]
[1750957685116,0.86787586,107420.0,107410.0,0.80369457]
[1750957688619,0.21066227,107420.0,107410.0,0.80369457]
[1750957688819,0.21066227,107420.0,107410.0,1.16449457]
[1750957689925,0.21066227,107420.0,107410.0,0.80716957]
[1750957690127,0.02454097,107420.0,107410.0,1.16449457]
[1750957692525,0.0930413,107450.0,107410.0,0.97835597]
[1750957692725,0.9083631,107450.0,107440.0,0.9042116]
[1750957692934,0.3257631,107450.0,107440.0,1.0042116]
[1750957693146,0.9084693,107450.0,107440.0,1.0685116]
[1750957693918,0.7697893,107450.0,107440.0,1.0685116]
[1750957694826,0.7707893,107450.0,107440.0,1.0685116]
[1750957695428,0.1880693,107450.0,107440.0,1.0685116]
[1750957695630,0.1870693,107450.0,107440.0,1.1010116]
[1750957695927,0.7695493,107450.0,107440.0,1.1010116]
[1750957696324,0.1870693,107450.0,107440.0,1.1010116]
[1750957696520,0.7694693,107450.0,107440.0,1.1010116]
[1750957697126,0.1870693,107450.0,107440.0,1.1010116]
[1750957697722,0.1860693,107450.0,107440.0,1.1010116]
[1750957697928,0.1860693,107450.0,107440.0,1.1040116]
[1750957701140,0.2166693,107450.0,107440.0,1.1040116]
[1750957703437,0.2166693,107450.0,107440.0,1.0725116]
[1750957703626,0.2166693,107450.0,107440.0,0.7151866]
[1750957703823,0.2166693,107450.0,107440.0,0.4648]
[1750957704024,1.3065943,107450.0,107440.0,0.2900868]
[1750957704224,0.9665943,107450.0,107440.0,0.2900868]
[1750957704525,0.99281514,107450.0,107440.0,0.2900868]
[1750957705129,0.99281514,107450.0,107440.0,0.2890868]
[1750957706427,0.99281514,107450.0,107440.0,0.103]
[1750957706629,1.33281514,107450.0,107440.0,0.1890866]
[1750957706827,1.33281514,107450.0,107440.0,0.003]
[1750957707225,1.51245514,107450.0,107440.0,0.003]
[1750957707525,1.51245514,107450.0,107440.0,0.001]
[1750957708231,1.51245514,107450.0,107440.0,0.002]
[1750957708434,1.51345514,107450.0,107440.0,0.001]
[1750957709742,0.1860866,107440.0,107430.0,0.1861038]
[1750957710036,1.61787244,107440.0,107430.0,0.1861038]
[1750957711036,1.61787244,107440.0,107430.0,0.1871038]
[1750957711734,1.25707244,107440.0,107430.0,0.1871038]
[1750957711928,1.26054744,107440.0,107430.0,0.1871038]
[1750957712129,0.31910744,107440.0,107430.0,0.1871038]
[1750957712436,0.89910744,107440.0,107430.0,0.9052288]
[1750957712638,0.89910744,107440.0,107430.0,0.9694288]
[1750957712833,0.88918744,107440.0,107430.0,0.9894288]
[1750957713235,0.88918744,107440.0,107430.0,0.9904288]
[1750957713639,0.88918744,107440.0,107430.0,0.9924288]
[1750957714236,0.88918744,107440.0,107430.0,0.6316288]
[1750957714839,0.88918744,107440.0,107430.0,0.2743038]
[1750957715039,0.88918744,107440.0,107430.0,0.6316288]
[1750957718743,1.02918744,107440.0,107430.0,0.6316288]
[1750957719343,1.02918744,107440.0,107430.0,0.2743038]
[1750957719743,0.44910744,107440.0,107430.0,0.2743038]
[1750957719942,1.02822744,107440.0,107430.0,0.2743038]
[1750957720747,1.02822744,107440.0,107430.0,0.2411038]
[1750957721750,0.80643244,107440.0,107430.0,0.2411038]
[1750957722038,1.74631244,107440.0,107430.0,0.024]
[1750957722232,1.74631244,107440.0,107430.0,0.004]
[1750957722434,2.12631244,107440.0,107430.0,0.004]
[1750957722735,2.07631244,107440.0,107430.0,0.004]
[1750957723130,2.07631244,107440.0,107430.0,0.003]
[1750957723748,0.3257075,107430.0,107420.0,0.1861207]
[1750957724043,0.95868304,107430.0,107420.0,0.2561207]
[1750957724845,0.95868304,107430.0,107420.0,0.2591207]
[1750957725046,0.60135804,107430.0,107420.0,0.2601207]
[1750957725447,1.31948304,107430.0,107420.0,0.1901213]
[1750957726141,1.31948304,107430.0,107420.0,0.004]
[1750957726445,1.82792304,107430.0,107420.0,0.004]
[1750957727447,1.45792304,107430.0,107420.0,0.004]
[1750957727634,1.81792304,107430.0,107420.0,0.004]
[1750957727940,0.1861213,107420.0,107410.0,0.00093097]
[1750957728138,2.09762714,107420.0,107410.0,0.00093097]
[1750957729136,2.09762714,107420.0,107410.0,0.00393097]
[1750957729544,2.09762714,107420.0,107410.0,0.00693097]
[1750957730744,1.74762714,107420.0,107410.0,0.00693097]
[1750957730946,2.07762714,107420.0,107410.0,0.00693097]
[1750957731748,1.82762714,107420.0,107410.0,0.00693097]